[Event "Norwegian Championship 2022"]
[Site "Kongsvinger, Norway"]
[Date "2022.07.14"]
[Round "7"]
[White "Abdrlauf, Elham"]
[Black "Tallaksen, Levi André"]
[Result "0-1"]
[Board "5"]
[TimeControl "40/5400+30:1800+30"]
[WhiteTitle "FM"]
[BlackTitle "FM"]
[WhiteFideId "1533533"]
[BlackFideId "1505785"]
[WhiteElo "2466"]
[BlackElo "2341"]

1. e4 {[%clk 01:30:57]} {[%emt 00:00:02]} e5 {[%clk 01:30:51]} {[%emt
00:00:09]} 2. Nc3 {[%clk 01:31:22]} {[%emt 00:00:05]} Nf6 {[%clk 01:31:14]}
{[%emt 00:00:07]} 3. Bc4 {[%clk 01:31:49]} {[%emt 00:00:03]} Nxe4 {[%clk
01:31:22]} {[%emt 00:00:23]} 4. Qh5 {[%clk 01:32:12]} {[%emt 00:00:06]} Nd6
{[%clk 01:31:44]} {[%emt 00:00:08]} 5. Bb3 {[%clk 01:32:37]} {[%emt 00:00:05]}
Nc6 {[%clk 01:31:47]} {[%emt 00:00:27]} 6. Nb5 {[%clk 01:33:03]} {[%emt
00:00:04]} g6 {[%clk 01:31:50]} {[%emt 00:00:27]} 7. Qf3 {[%clk 01:33:30]}
{[%emt 00:00:03]} f5 {[%clk 01:32:07]} {[%emt 00:00:12]} 8. Qd5 {[%clk
01:33:57]} {[%emt 00:00:02]} Qf6 {[%clk 01:31:33]} {[%emt 00:01:05]} 9. Nxc7+
{[%clk 01:34:19]} {[%emt 00:00:09]} Kd8 {[%clk 01:31:37]} {[%emt 00:00:26]} 10.
Nxa8 {[%clk 01:34:44]} {[%emt 00:00:05]} b6 {[%clk 01:31:52]} {[%emt 00:00:15]}
11. Qd3 {[%clk 01:33:21]} {[%emt 00:01:52]} Bb7 {[%clk 01:22:27]} {[%emt
00:09:55]} 12. h4 {[%clk 01:33:39]} {[%emt 00:00:12]} Ne4 {[%clk 01:11:21]}
{[%emt 00:11:37]} 13. Nf3 {[%clk 01:18:27]} {[%emt 00:15:40]} Bc5 {[%clk
01:05:22]} {[%emt 00:06:30]} 14. Rf1 {[%clk 01:17:53]} {[%emt 00:01:04]} Nd4
{[%clk 00:47:46]} {[%emt 00:18:06]} 15. Qc4 {[%clk 00:51:21]} {[%emt 00:27:02]}
b5 {[%clk 00:37:13]} {[%emt 00:11:03]} 16. Qd3 {[%clk 00:51:03]} {[%emt
00:00:47]} Re8 {[%clk 00:29:50]} {[%emt 00:07:54]} 17. Ng1 {[%clk 00:45:21]}
{[%emt 00:06:12]} Bxa8 {[%clk 00:19:05]} {[%emt 00:11:16]} 18. Qh3 {[%clk
00:42:37]} {[%emt 00:03:14]} Qb6 {[%clk 00:17:57]} {[%emt 00:01:38]} 19. Ne2
{[%clk 00:40:20]} {[%emt 00:02:46]} Nxe2 {[%clk 00:15:29]} {[%emt 00:02:57]} 20.
Kxe2 {[%clk 00:40:32]} {[%emt 00:00:19]} Bxf2 {[%clk 00:15:51]} {[%emt
00:00:09]} 21. d4 {[%clk 00:40:38]} {[%emt 00:00:24]} exd4 {[%clk 00:13:23]}
{[%emt 00:02:57]} 22. Kd1 {[%clk 00:40:56]} {[%emt 00:00:11]} Bg3 {[%clk
00:11:52]} {[%emt 00:02:02]} 23. Bg5+ {[%clk 00:40:46]} {[%emt 00:00:39]} Kc8
{[%clk 00:12:15]} {[%emt 00:00:07]} 24. Kc1 {[%clk 00:41:07]} {[%emt 00:00:09]}
Qd6 {[%clk 00:11:43]} {[%emt 00:01:02]} 25. a4 {[%clk 00:39:43]} {[%emt
00:01:55]} Nf2 {[%clk 00:03:30]} {[%emt 00:08:43]} 26. Rxf2 {[%clk 00:39:00]}
{[%emt 00:01:12]} Bxf2 {[%clk 00:03:56]} {[%emt 00:00:04]} 27. Bd2 {[%clk
00:37:54]} {[%emt 00:01:36]} Be3 {[%clk 00:03:41]} {[%emt 00:00:45]} 28. Bxe3
{[%clk 00:37:57]} {[%emt 00:00:28]} dxe3 {[%clk 00:04:05]} {[%emt 00:00:06]} 29.
Kb1 {[%clk 00:38:24]} {[%emt 00:00:03]} Qd2 {[%clk 00:02:07]} {[%emt 00:02:27]}
30. Qg3 {[%clk 00:37:31]} {[%emt 00:01:23]} e2 {[%clk 00:02:13]} {[%emt
00:00:25]} 31. Ka2 {[%clk 00:37:56]} {[%emt 00:00:04]} e1=Q {[%clk 00:02:16]}
{[%emt 00:00:27]} 32. Rxe1 {[%clk 00:38:23]} {[%emt 00:00:03]} Qxe1 {[%clk
00:02:31]} {[%emt 00:00:15]} 33. Qd6 {[%clk 00:38:36]} {[%emt 00:00:16]} Bc6
{[%clk 00:01:54]} {[%emt 00:01:08]} 34. Qc5 {[%clk 00:37:23]} {[%emt 00:01:43]}
Qe3 {[%clk 00:02:06]} {[%emt 00:00:18]} 35. Qb4 {[%clk 00:37:42]} {[%emt
00:00:12]} bxa4 {[%clk 00:01:37]} {[%emt 00:01:00]} 0-1

[Event "Norwegian Championship 2022"]
[Site "Kongsvinger, Norway"]
[Date "2022.07.14"]
[Round "7"]
[White "Djurhuus, Rune"]
[Black "Stanford, Maxim Barth"]
[Result "1/2-1/2"]
[Board "6"]
[TimeControl "40/5400+30:1800+30"]
[WhiteTitle "GM"]
[BlackTitle "IM"]
[WhiteFideId "1500082"]
[BlackFideId "408280"]
[WhiteElo "2407"]
[BlackElo "2308"]

1. e4 {[%clk 01:25:50]} {[%emt 00:05:09]} c5 {[%clk 01:30:54]} {[%emt
00:00:06]} 2. Nf3 {[%clk 01:25:38]} {[%emt 00:00:43]} Nc6 {[%clk 01:31:07]}
{[%emt 00:00:16]} 3. Bb5 {[%clk 01:25:48]} {[%emt 00:00:20]} Nf6 {[%clk
01:31:17]} {[%emt 00:00:20]} 4. e5 {[%clk 01:23:23]} {[%emt 00:02:56]} Nd5
{[%clk 01:31:40]} {[%emt 00:00:06]} 5. Nc3 {[%clk 01:23:50]} {[%emt 00:00:04]}
Nc7 {[%clk 01:30:46]} {[%emt 00:01:23]} 6. Bc4 {[%clk 01:18:39]} {[%emt
00:05:41]} e6 {[%clk 01:25:43]} {[%emt 00:05:33]} 7. d3 {[%clk 01:16:29]}
{[%emt 00:02:40]} d5 {[%clk 01:23:23]} {[%emt 00:02:50]} 8. exd6 {[%clk
01:16:43]} {[%emt 00:00:17]} Bxd6 {[%clk 01:23:47]} {[%emt 00:00:05]} 9. O-O
{[%clk 01:14:14]} {[%emt 00:02:59]} Be7 {[%clk 01:22:49]} {[%emt 00:01:28]} 10.
a4 {[%clk 01:13:09]} {[%emt 00:01:36]} b6 {[%clk 01:18:51]} {[%emt 00:04:28]}
11. Re1 {[%clk 01:06:15]} {[%emt 00:07:23]} O-O {[%clk 01:15:33]} {[%emt
00:03:48]} 12. Bf4 {[%clk 01:04:49]} {[%emt 00:01:56]} Bb7 {[%clk 01:10:47]}
{[%emt 00:05:16]} 13. h3 {[%clk 00:58:43]} {[%emt 00:06:36]} a6 {[%clk
01:05:26]} {[%emt 00:05:52]} 14. Ne5 {[%clk 00:54:30]} {[%emt 00:04:43]} Nd4
{[%clk 01:02:26]} {[%emt 00:03:29]} 15. Ne2 {[%clk 00:52:33]} {[%emt 00:02:28]}
b5 {[%clk 00:58:35]} {[%emt 00:04:22]} 16. Ba2 {[%clk 00:53:01]} {[%emt
00:00:01]} Nd5 {[%clk 00:57:44]} {[%emt 00:01:21]} 17. Bh2 {[%clk 00:52:45]}
{[%emt 00:00:46]} Bd6 {[%clk 00:54:11]} {[%emt 00:04:03]} 18. Nxd4 {[%clk
00:48:41]} {[%emt 00:04:35]} cxd4 {[%clk 00:54:09]} {[%emt 00:00:32]} 19. Qg4
{[%clk 00:48:50]} {[%emt 00:00:21]} Bb4 {[%clk 00:48:36]} {[%emt 00:06:03]} 20.
Re2 {[%clk 00:41:12]} {[%emt 00:08:08]} Nf6 {[%clk 00:47:32]} {[%emt 00:01:34]}
21. Qf4 {[%clk 00:41:00]} {[%emt 00:00:41]} Nh5 {[%clk 00:44:00]} {[%emt
00:04:02]} 22. Qg4 {[%clk 00:39:07]} {[%emt 00:02:22]} Nf6 {[%clk 00:43:28]}
{[%emt 00:01:03]} 23. Qf4 {[%clk 00:36:24]} {[%emt 00:03:12]} Nh5 {[%clk
00:42:45]} {[%emt 00:01:13]} 24. Qg4 {[%clk 00:35:47]} {[%emt 00:01:08]} Nf6
{[%emt 00:00:41]} 1/2-1/2

[Event "Norwegian Championship 2022"]
[Site "Kongsvinger, Norway"]
[Date "2022.07.14"]
[Round "7"]
[White "Sjøberg, Isak"]
[Black " Østenstad, Berge"]
[Result "1/2-1/2"]
[Board "7"]
[TimeControl "40/5400+30:1800+30"]
[WhiteTitle "FM"]
[BlackTitle "GM"]
[WhiteFideId "1521640"]
[BlackFideId "1500058"]
[WhiteElo "2308"]
[BlackElo "2451"]

1. e4 {[%clk 01:30:56]} {[%emt 00:00:02]} e6 {[%clk 01:30:54]} {[%emt
00:00:07]} 2. d4 {[%clk 01:31:22]} {[%emt 00:00:05]} d5 {[%clk 01:31:20]}
{[%emt 00:00:03]} 3. Nc3 {[%clk 01:31:47]} {[%emt 00:00:05]} Bb4 {[%clk
01:31:46]} {[%emt 00:00:05]} 4. e5 {[%clk 01:32:12]} {[%emt 00:00:05]} c5
{[%clk 01:32:11]} {[%emt 00:00:04]} 5. a3 {[%clk 01:32:39]} {[%emt 00:00:04]}
Bxc3+ {[%clk 01:32:36]} {[%emt 00:00:05]} 6. bxc3 {[%clk 01:32:53]} {[%emt
00:00:15]} Qa5 {[%clk 01:32:51]} {[%emt 00:00:16]} 7. Bd2 {[%clk 01:29:08]}
{[%emt 00:04:15]} Qa4 {[%clk 01:33:02]} {[%emt 00:00:19]} 8. h4 {[%clk
01:29:33]} {[%emt 00:00:05]} b6 {[%clk 01:26:34]} {[%emt 00:06:58]} 9. h5
{[%clk 01:29:40]} {[%emt 00:00:23]} h6 {[%clk 01:26:58]} {[%emt 00:00:06]} 10.
Qg4 {[%clk 01:25:36]} {[%emt 00:04:34]} Kf8 {[%clk 01:27:05]} {[%emt 00:00:23]}
11. Rh3 {[%clk 01:23:49]} {[%emt 00:02:16]} Ne7 {[%clk 01:26:47]} {[%emt
00:00:49]} 12. Bd3 {[%clk 01:19:38]} {[%emt 00:04:42]} Nbc6 {[%clk 01:22:08]}
{[%emt 00:05:09]} 13. Rg3 {[%clk 01:07:02]} {[%emt 00:13:06]} Rg8 {[%clk
01:22:07]} {[%emt 00:00:30]} 14. Bh7 {[%clk 01:01:35]} {[%emt 00:05:57]} Nf5
{[%clk 01:22:18]} {[%emt 00:00:19]} 15. Bxg8 {[%clk 01:01:46]} {[%emt
00:00:19]} Nxg3 {[%clk 01:22:40]} {[%emt 00:00:08]} 16. Qxg3 {[%clk 00:47:05]}
{[%emt 00:15:12]} Qxc2 {[%clk 01:20:54]} {[%emt 00:02:16]} 17. Bxf7 {[%clk
00:42:00]} {[%emt 00:05:34]} Kxf7 {[%clk 01:20:50]} {[%emt 00:00:34]} 18. Ne2
{[%clk 00:38:40]} {[%emt 00:03:49]} Ba6 {[%clk 01:05:32]} {[%emt 00:15:48]} 19.
Qf3+ {[%clk 00:30:51]} {[%emt 00:08:20]} Kg8 {[%clk 00:58:27]} {[%emt
00:07:35]} 20. Rc1 {[%clk 00:29:31]} {[%emt 00:01:51]} Qh7 {[%clk 00:56:47]}
{[%emt 00:02:09]} 21. Be3 {[%clk 00:25:12]} {[%emt 00:04:49]} Qd3 {[%clk
00:39:23]} {[%emt 00:17:52]} 22. Nf4 {[%clk 00:21:14]} {[%emt 00:04:30]} Qf5
{[%clk 00:37:36]} {[%emt 00:02:17]} 23. g4 {[%clk 00:17:58]} {[%emt 00:03:47]}
Qf7 {[%clk 00:38:01]} {[%emt 00:00:04]} 24. Qg3 {[%clk 00:16:22]} {[%emt
00:02:06]} Rc8 {[%clk 00:36:34]} {[%emt 00:01:58]} 25. g5 {[%clk 00:15:26]}
{[%emt 00:01:26]} hxg5 {[%clk 00:36:34]} {[%emt 00:00:30]} 26. Qxg5 {[%clk
00:15:28]} {[%emt 00:00:28]} Ne7 {[%clk 00:35:49]} {[%emt 00:01:13]} 27. h6
{[%clk 00:14:05]} {[%emt 00:01:55]} cxd4 {[%clk 00:29:40]} {[%emt 00:06:39]} 28.
cxd4 {[%clk 00:13:30]} {[%emt 00:01:05]} Rxc1+ {[%clk 00:29:52]} {[%emt
00:00:19]} 29. Bxc1 {[%clk 00:13:56]} {[%emt 00:00:03]} Nf5 {[%clk 00:26:49]}
{[%emt 00:03:31]} 30. hxg7 {[%clk 00:13:55]} {[%emt 00:00:32]} Nxd4 {[%clk
00:25:10]} {[%emt 00:02:09]} 31. Qd8+ {[%clk 00:11:22]} {[%emt 00:03:03]} Kxg7
{[%clk 00:25:32]} {[%emt 00:00:09]} 32. Qg5+ {[%clk 00:11:32]} {[%emt
00:00:20]} Kf8 {[%clk 00:21:35]} {[%emt 00:04:27]} 33. Qd8+ {[%clk 00:11:44]}
{[%emt 00:00:19]} Kg7 {[%clk 00:21:43]} {[%emt 00:00:22]} 34. Qg5+ {[%clk
00:08:01]} {[%emt 00:04:12]} Kf8 {[%clk 00:22:02]} {[%emt 00:00:11]} 35. Qd8+
{[%clk 00:01:43]} {[%emt 00:06:49]} 1/2-1/2

[Event "Norwegian Championship 2022"]
[Site "Kongsvinger, Norway"]
[Date "2022.07.15"]
[Round "8"]
[White "Stanford, Maxim Barth"]
[Black "Agdestein, Simen"]
[Result "0-1"]
[Board "1"]
[TimeControl "40/5400+30:1800+30"]
[WhiteTitle "IM"]
[BlackTitle "GM"]
[WhiteFideId "408280"]
[BlackFideId "1500015"]
[WhiteElo "2308"]
[BlackElo "2559"]

1. d4 {[%clk 01:30:48]} {[%emt 00:00:05]} Nf6 {[%clk 01:30:57]} {[%emt
00:00:09]} 2. c4 {[%clk 01:31:01]} {[%emt 00:00:17]} e6 {[%clk 01:31:23]}
{[%emt 00:00:04]} 3. Nc3 {[%clk 01:31:16]} {[%emt 00:00:14]} Bb4 {[%clk
01:31:47]} {[%emt 00:00:06]} 4. Qc2 {[%clk 01:31:26]} {[%emt 00:00:20]} O-O
{[%clk 01:31:38]} {[%emt 00:00:39]} 5. e4 {[%clk 01:31:31]} {[%emt 00:00:25]}
d6 {[%clk 01:27:56]} {[%emt 00:04:13]} 6. a3 {[%clk 01:29:19]} {[%emt
00:02:41]} Bxc3+ {[%clk 01:28:09]} {[%emt 00:00:17]} 7. bxc3 {[%clk 01:29:45]}
{[%emt 00:00:04]} Nc6 {[%clk 01:20:32]} {[%emt 00:08:07]} 8. Bd3 {[%clk
01:28:44]} {[%emt 00:01:31]} e5 {[%clk 01:20:10]} {[%emt 00:00:52]} 9. Ne2
{[%clk 01:28:00]} {[%emt 00:01:13]} b6 {[%clk 01:16:49]} {[%emt 00:03:52]} 10.
O-O {[%clk 01:25:39]} {[%emt 00:02:51]} Ba6 {[%clk 01:14:23]} {[%emt 00:02:56]}
11. f4 {[%clk 01:24:54]} {[%emt 00:01:15]} Nd7 {[%clk 01:13:30]} {[%emt
00:01:23]} 12. Rf3 {[%clk 01:20:32]} {[%emt 00:04:52]} Na5 {[%clk 01:07:33]}
{[%emt 00:06:27]} 13. Ng3 {[%clk 01:07:43]} {[%emt 00:13:19]} Kh8 {[%clk
01:01:50]} {[%emt 00:06:13]} 14. Nf5 {[%clk 00:55:46]} {[%emt 00:12:28]} f6
{[%clk 01:01:02]} {[%emt 00:01:18]} 15. fxe5 {[%clk 00:46:18]} {[%emt
00:09:58]} dxe5 {[%clk 00:56:17]} {[%emt 00:05:15]} 16. Qe2 {[%clk 00:41:58]}
{[%emt 00:04:50]} Nb3 {[%clk 00:47:14]} {[%emt 00:09:33]} 17. Rh3 {[%clk
00:39:15]} {[%emt 00:03:12]} Qe8 {[%clk 00:38:22]} {[%emt 00:09:22]} 18. Rb1
{[%clk 00:33:34]} {[%emt 00:06:11]} Nxc1 {[%clk 00:38:31]} {[%emt 00:00:21]} 19.
Rxc1 {[%clk 00:34:01]} {[%emt 00:00:03]} g6 {[%clk 00:33:01]} {[%emt 00:06:00]}
20. Nh4 {[%clk 00:33:24]} {[%emt 00:01:07]} Rg8 {[%clk 00:31:44]} {[%emt
00:01:48]} 21. Rf1 {[%clk 00:29:34]} {[%emt 00:04:20]} Rd8 {[%clk 00:30:26]}
{[%emt 00:01:48]} 22. Qe3 {[%clk 00:27:32]} {[%emt 00:02:32]} Qe7 {[%clk
00:27:48]} {[%emt 00:03:08]} 23. Rff3 {[%clk 00:21:42]} {[%emt 00:06:21]} Rg7
{[%clk 00:24:06]} {[%emt 00:04:12]} 24. Qh6 {[%clk 00:18:38]} {[%emt 00:03:33]}
Nf8 {[%clk 00:19:36]} {[%emt 00:05:00]} 25. d5 {[%clk 00:10:41]} {[%emt
00:08:27]} Bc8 {[%clk 00:19:24]} {[%emt 00:00:42]} 26. Rhg3 {[%clk 00:10:56]}
{[%emt 00:00:15]} g5 {[%clk 00:18:40]} {[%emt 00:01:14]} 27. Nf5 {[%clk
00:11:13]} {[%emt 00:00:13]} Bxf5 {[%clk 00:19:07]} {[%emt 00:00:04]} 28. Rxf5
{[%clk 00:11:03]} {[%emt 00:00:41]} Ng6 {[%clk 00:13:20]} {[%emt 00:06:16]} 29.
Rgf3 {[%clk 00:11:13]} {[%emt 00:00:20]} Rf8 {[%clk 00:09:14]} {[%emt
00:04:36]} 30. g3 {[%clk 00:11:18]} {[%emt 00:00:25]} Rgf7 {[%clk 00:09:00]}
{[%emt 00:00:45]} 31. Bf1 {[%clk 00:09:22]} {[%emt 00:02:26]} Qxa3 {[%clk
00:06:33]} {[%emt 00:02:57]} 32. h4 {[%clk 00:05:26]} {[%emt 00:04:26]} gxh4
{[%clk 00:06:08]} {[%emt 00:00:55]} 33. gxh4 {[%clk 00:05:30]} {[%emt
00:00:26]} Nf4 {[%clk 00:05:04]} {[%emt 00:01:34]} 34. R5xf4 {[%clk 00:03:50]}
{[%emt 00:02:09]} exf4 {[%clk 00:05:23]} {[%emt 00:00:11]} 35. Qxf4 {[%clk
00:03:50]} {[%emt 00:00:30]} Qd6 {[%clk 00:02:20]} {[%emt 00:03:32]} 36. Bh3
{[%clk 00:03:56]} {[%emt 00:00:25]} Qxf4 {[%clk 00:01:53]} {[%emt 00:00:58]} 37.
Rxf4 {[%clk 00:04:21]} {[%emt 00:00:05]} Kg7 {[%clk 00:01:45]} {[%emt
00:00:37]} 38. Be6 {[%clk 00:03:42]} {[%emt 00:01:08]} Re7 {[%clk 00:02:12]}
{[%emt 00:00:04]} 39. Rf1 {[%clk 00:03:50]} {[%emt 00:00:21]} a5 {[%clk
00:02:09]} {[%emt 00:00:33]} 40. Ra1 {[%clk 00:32:59]} {[%emt 00:01:21]} Ra8
{[%clk 00:32:07]} {[%emt 00:00:32]} 41. Kf2 {[%clk 00:32:31]} {[%emt 00:00:58]}
a4 {[%clk 00:30:32]} {[%emt 00:02:06]} 42. Ke3 {[%clk 00:30:49]} {[%emt
00:02:12]} a3 {[%clk 00:28:57]} {[%emt 00:02:05]} 43. Ra2 {[%clk 00:30:08]}
{[%emt 00:01:11]} Rxe6 {[%clk 00:23:08]} {[%emt 00:06:19]} 44. dxe6 {[%clk
00:30:33]} {[%emt 00:00:05]} Kf8 {[%clk 00:23:30]} {[%emt 00:00:09]} 45. e5
{[%clk 00:25:27]} {[%emt 00:05:36]} fxe5 {[%clk 00:21:23]} {[%emt 00:02:36]} 46.
Ke4 {[%clk 00:25:20]} {[%emt 00:00:37]} Ke7 {[%clk 00:21:27]} {[%emt 00:00:26]}
47. Kf5 {[%clk 00:23:54]} {[%emt 00:01:55]} e4 {[%clk 00:19:05]} {[%emt
00:02:52]} 48. Kxe4 {[%clk 00:24:20]} {[%emt 00:00:05]} Kxe6 {[%clk 00:19:31]}
{[%emt 00:00:05]} 49. Kd3 {[%clk 00:24:39]} {[%emt 00:00:10]} Kd6 {[%clk
00:17:16]} {[%emt 00:02:45]} 50. h5 {[%clk 00:22:27]} {[%emt 00:02:42]} Kc5
{[%clk 00:17:23]} {[%emt 00:00:23]} 51. h6 {[%clk 00:22:30]} {[%emt 00:00:26]}
Ra5 {[%clk 00:14:47]} {[%emt 00:03:07]} 52. Kc2 {[%clk 00:20:27]} {[%emt
00:02:33]} Kxc4 {[%clk 00:15:11]} {[%emt 00:00:06]} 53. Kb1 {[%clk 00:20:53]}
{[%emt 00:00:04]} Kb3 {[%clk 00:15:07]} {[%emt 00:00:34]} 0-1